bitfinex/quotes_ETHUSD_20250314
["timestamp","ask_amount","ask_price","bid_price","bid_amount"]
[1741920978238,10.5094986,1897.2,1896.8,5.27201]
[1741920978411,0.5227,1897.2,1896.8,5.27189]
[1741920978613,5.27123,1897.1,1896.8,0.755]
[1741920978811,5.27123,1897.1,1896.8,2.4564832]
[1741920979211,5.27154,1897.0,1896.7,5.715232]
[1741920979809,5.27123,1897.1,1896.7,10.987532]
[1741920980215,10.5094886,1897.2,1896.7,10.987532]
[1741920980511,10.5094886,1897.2,1896.8,5.27201]
[1741920980944,5.27122,1897.1,1896.7,10.987532]
[1741920981445,5.27122,1897.1,1896.7,16.259672]
[1741920981741,5.27122,1897.1,1896.7,10.987372]
[1741920982942,10.5094886,1897.2,1896.7,10.987372]
[1741920983152,0.5227,1897.5,1897.3,5.27056]
[1741920983316,5.79217,1897.8,1897.4,10.47135]
[1741920983515,5.26955,1897.7,1897.4,5.201]
[1741920983715,5.26992,1897.6,1897.4,5.201]
[1741920983917,5.27009,1897.5,1897.4,5.201]
[1741920984334,10.53999,1897.6,1897.1,10.52275569]
[1741920984538,10.53999,1897.6,1897.1,10.47005]
[1741920984750,5.26992,1897.6,1897.1,13.123541]
[1741920985246,5.2702,1897.5,1897.1,7.852491]
[1741920985752,5.2702,1897.5,1897.1,13.123661]
[1741920985948,5.27039,1897.4,1897.1,7.852491]
[1741920986120,5.27039,1897.4,1897.1,2.653491]
[1741920986324,5.27039,1897.4,1897.1,7.847491]
[1741920986619,5.2702,1897.5,1897.1,7.847491]
[1741920987254,5.2702,1897.5,1897.1,13.118661]
[1741920987434,3.0,1897.7,1897.1,13.118661]
[1741920987435,8.26966,1897.7,1897.3,5.27062]
[1741920988353,0.5227,1897.8,1897.5,5.26992]
[1741920988534,10.5073286,1898.0,1897.5,10.53989]
[1741920988735,5.26909,1897.9,1897.4,6.02916]
[1741920988943,5.2385686,1898.0,1897.5,5.191]
[1741920988944,5.26968,1897.7,1897.5,5.191]
[1741920989249,10.5084186,1897.6,1897.2,15.239]
[1741920989456,10.5084186,1897.6,1897.2,5.199]
[1741920989751,15.7784286,1897.6,1897.2,5.199]
[1741920989921,5.27014,1897.5,1897.2,5.199]
[1741920990940,5.79251,1897.6,1897.2,10.46978]
[1741920991132,5.79251,1897.6,1897.2,15.7405]
[1741920991455,5.26981,1897.6,1897.2,15.7405]
[1741920992151,4.7158686,1897.6,1897.2,5.199]
[1741920992356,3.0,1897.5,1897.1,0.7588]
[1741920992557,5.27049,1897.4,1897.1,0.7588]
[1741920992850,5.27066,1897.3,1896.9,6.05325]
[1741920993426,5.27108,1897.2,1896.9,0.7815]
[1741920993826,5.27131,1897.1,1896.8,5.193]
[1741920994048,5.27131,1897.1,1896.7,11.23464]
[1741920994431,5.27131,1897.1,1896.7,13.362104]
[1741920994955,5.27167,1897.0,1896.7,0.7716]
[1741920995254,5.79437,1897.0,1896.6,20.50252]
[1741920995943,5.79437,1897.0,1896.6,15.31252]
[1741920996166,5.79437,1897.0,1896.6,20.50052]
[1741920997064,5.27131,1897.1,1896.7,5.27227]
[1741920997227,5.27037,1897.4,1897.0,5.27132]
[1741920997431,3.0,1897.3,1897.0,5.27132]
[1741920997627,0.5227,1897.6,1897.3,5.27063]
[1741920997833,0.5227,1897.6,1897.1,5.27094]
[1741920997834,5.79264,1897.6,1897.1,5.27094]
[1741920998162,3.0,1897.4,1897.1,6.14392085]
[1741920998952,3.0,1897.4,1897.1,0.87298085]
[1741920999132,8.27038,1897.4,1897.1,0.87298085]
[1741920999729,8.27038,1897.4,1897.0,10.46336]
[1741921000628,8.27038,1897.4,1897.0,5.192]
[1741921000629,5.27064,1897.3,1897.0,5.192]
[1741921000933,5.27094,1897.2,1896.9,10.04]
[1741921001133,5.27094,1897.2,1896.8,10.4599]
[1741921002363,5.27094,1897.2,1896.8,10.45982]
[1741921002661,5.27094,1897.2,1896.8,12.112112]
[1741921005781,5.27004,1897.6,1897.2,5.2707]
[1741921005936,3.0,1897.5,1897.2,10.54147]
[1741921006342,3.0,1897.5,1897.2,5.2707]
[1741921007143,3.0,1897.5,1897.3,5.27064]
[1741921007349,8.79229,1897.7,1897.3,6.33004046]
[1741921007773,8.79229,1897.7,1897.3,6.32989046]
[1741921008279,8.79229,1897.7,1897.3,1.05940046]
[1741921008443,8.79229,1897.7,1897.2,10.44691]
[1741921008876,5.26984,1897.6,1897.2,10.44691]
[1741921009385,5.26984,1897.6,1897.2,15.71767]
[1741921009758,5.26984,1897.6,1897.2,10.44676]
[1741921010385,5.26984,1897.6,1897.2,15.71747]
[1741921010551,5.26984,1897.6,1897.3,1.571747]
[1741921011879,5.26984,1897.6,1897.2,5.176]
[1741921012065,5.2704,1897.4,1897.2,5.176]
[1741921012449,10.54003,1897.6,1897.2,5.176]
[1741921012776,5.27037,1897.4,1897.2,5.176]
[1741921012968,5.2701,1897.5,1897.2,5.176]
[1741921013781,5.27039,1897.4,1897.2,5.176]
[1741921014184,3.0,1897.4,1897.2,5.176]
[1741921014479,8.26981,1897.6,1897.2,11.572317]
[1741921015080,3.0,1897.4,1897.2,6.301397]
[1741921015254,8.26981,1897.6,1897.2,11.572257]
[1741921015454,13.53984,1897.6,1897.2,11.572257]
[1741921015655,8.26981,1897.6,1897.2,6.301397]
[1741921015960,3.0,1897.4,1897.2,5.176]
[1741921016156,3.0,1897.4,1897.1,6.07806]
[1741921016582,5.27037,1897.4,1897.1,0.807]
[1741921017280,8.26994,1897.6,1897.1,0.807]
[1741921017487,5.27019,1897.5,1897.1,0.807]
[1741921017681,0.5227,1897.4,1896.9,16.07534]
[1741921017864,5.27086,1897.3,1896.9,21.22334]
[1741921018186,10.54172,1897.3,1896.9,21.22334]
[1741921018477,10.54172,1897.3,1896.9,16.07534]
[1741921018684,10.54163,1897.3,1896.9,16.07534]
[1741921020198,5.27027466,1897.3,1896.9,10.04]
[1741921020398,5.27133,1897.1,1896.9,10.04]
[1741921020597,5.27092,1897.2,1896.8,5.27188]
[1741921021373,3.0,1897.3,1896.7,5.148]
[1741921021573,3.0,1897.3,1896.8,6.02951]
[1741921021574,3.0,1897.1,1896.8,6.02951]
[1741921021995,3.0,1897.2,1896.8,2.402581]
[1741921022193,10.5085786,1897.6,1897.2,5.27081]
[1741921022395,5.27013,1897.5,1897.1,6.02865]
[1741921022610,3.0,1897.4,1897.1,0.7576]
[1741921022901,5.27041,1897.4,1897.1,0.7576]
[1741921023074,8.27041,1897.4,1897.1,0.7576]
[1741921023808,8.27041,1897.4,1897.1,6.02878]
[1741921023809,3.0,1897.4,1897.1,6.02878]
[1741921025499,3.0,1897.4,1897.1,7.158784]
[1741921026179,0.5227,1897.9,1897.2,0.7576]
[1741921026397,5.26933,1897.8,1897.3,10.54087]
[1741921026597,5.26933,1897.8,1897.4,5.27032]
[1741921028095,3.0,1897.8,1897.4,10.54041]
[1741921028297,3.0,1897.8,1897.4,11.594451]
[1741921028497,3.0,1897.8,1897.4,6.324131]
[1741921029215,8.26927,1897.8,1897.4,6.324131]
[1741921029619,8.26927,1897.8,1897.4,5.27009]
[1741921030116,3.0,1897.8,1897.4,5.27009]
[1741921030317,3.0,1897.8,1897.5,5.27006]
[1741921030820,8.26927,1897.8,1897.5,5.27006]
[1741921031020,8.26927,1897.8,1897.4,5.27029]
[1741921031199,8.26927,1897.8,1897.4,6.324382]
[1741921032921,8.26927,1897.8,1897.4,6.324252]
[1741921033126,3.0,1897.8,1897.5,5.27007]
[1741921033931,8.26926,1897.8,1897.4,5.27016]
[1741921034636,3.0,1897.8,1897.6,6.07219]
[1741921035009,3.0,1897.9,1897.6,6.07199]
[1741921035537,8.56315574,1897.8,1897.4,11.19476]
[1741921035742,9.08585574,1897.8,1897.4,11.19476]
[1741921036137,3.81649574,1897.8,1897.4,5.132]
[1741921036460,5.26992,1897.6,1897.3,10.04]
[1741921036637,0.5227,1897.5,1897.1,6.06342]
[1741921036954,5.79289,1897.5,1897.1,11.20542]
[1741921037242,0.5227,1897.5,1897.1,16.4764]
[1741921037414,0.5227,1897.5,1897.1,18.12404]
[1741921038041,5.79286,1897.5,1897.1,12.85302]
[1741921038213,5.79286,1897.5,1897.1,5.142]
[1741921038536,3.0,1897.5,1897.2,0.8237]
[1741921038741,8.27011,1897.5,1897.1,10.41294]
[1741921039249,3.0,1897.5,1897.1,10.41294]
[1741921039418,3.0,1897.5,1897.2,5.2708]
[1741921039829,3.5227,1897.7,1897.3,6.02492]
[1741921040036,8.79226,1897.7,1897.3,6.02492]
[1741921040539,8.26956,1897.7,1897.3,6.02492]
[1741921040742,3.5227,1897.8,1897.4,5.27036]
[1741921041055,8.792,1897.8,1897.4,5.27025]
[1741921041463,8.2693,1897.8,1897.4,5.27025]
[1741921041663,8.2693,1897.8,1897.4,10.54049]
[1741921041832,8.2693,1897.8,1897.4,11.7882073]
[1741921042356,8.2693,1897.8,1897.4,6.5179573]
[1741921042563,0.5227,1898.0,1897.8,5.26904]
[1741921042862,5.79087,1898.2,1897.8,0.8078]
[1741921043058,5.79087,1898.2,1897.8,6.07695]
[1741921043265,3.0,1898.1,1897.8,6.07695]
[1741921043467,3.5227,1898.2,1897.9,5.26894]
[1741921043638,0.5227,1898.2,1897.9,5.26894]
[1741921043960,3.29379574,1898.3,1897.9,5.26875]
[1741921044159,3.0,1898.2,1897.9,5.26875]
[1741921044360,3.29379574,1898.3,1898.0,5.2687]
[1741921044560,5.79046,1898.4,1898.0,6.836545]
[1741921044764,3.0,1898.3,1898.0,6.836545]
[1741921045081,5.79046,1898.4,1898.0,6.836545]
[1741921046062,3.0,1898.3,1898.0,6.836545]
[1741921046376,8.26787,1898.3,1898.0,1.567845]
[1741921046861,3.0,1898.3,1898.0,6.836535]
[1741921047066,8.2679,1898.3,1898.1,0.6836535]
[1741921047235,8.2679,1898.3,1898.0,1.567845]
[1741921048367,8.2679,1898.3,1898.1,0.7891]
[1741921049358,13.53601,1898.3,1898.1,0.7891]
[1741921049557,13.53601,1898.3,1897.9,0.7548]
[1741921049558,8.56196574,1898.2,1897.9,0.7548]
[1741921049747,8.56196574,1898.2,1897.8,11.537878]
[1741921049947,8.56196574,1898.2,1897.8,6.267628]
[1741921049948,3.29379574,1898.2,1897.8,6.267628]
[1741921050152,3.29379574,1898.2,1897.8,5.133]
[1741921050465,3.29379574,1898.2,1897.6,5.26956]
[1741921050466,3.29379574,1898.0,1897.6,5.134]
[1741921050668,3.29379574,1898.0,1897.5,5.9501]
[1741921050669,5.26931,1897.8,1897.5,5.9501]
[1741921050869,5.79191,1897.9,1897.5,11.22016]
[1741921051073,5.79114,1898.1,1897.7,5.26952]
[1741921051376,5.26844,1898.1,1897.8,0.8161]
[1741921052249,8.56194574,1898.2,1897.8,6.08523]
[1741921052250,8.56203574,1898.2,1897.8,6.08523]
[1741921052648,5.26824,1898.2,1897.8,6.08523]
[1741921052857,5.26788,1898.3,1897.9,5.877483]
[1741921053182,5.26788,1898.3,1897.9,11.013483]
[1741921053680,5.26825,1898.2,1897.9,5.744523]
[1741921055506,5.26842,1898.1,1897.8,0.8161]
[1741921055786,5.26923,1897.9,1897.6,8.9028]
[1741921056688,5.26923,1897.9,1897.6,5.9028]
[1741921057779,8.56251574,1898.0,1897.6,11.17254]
[1741921057977,5.26859,1898.1,1897.7,6.386684]
[1741921058181,10.53723,1898.1,1897.7,6.386684]
[1741921058993,5.26882,1898.0,1897.7,1.117254]
[1741921059870,5.26859,1898.1,1897.7,1.117254]
[1741921060070,5.26859,1898.1,1897.7,6.386774]
[1741921061095,10.53723,1898.1,1897.7,6.386774]
[1741921063094,5.26859,1898.1,1897.7,6.386774]
[1741921063687,5.26876,1898.0,1897.7,1.117254]
[1741921063915,5.26876,1898.0,1897.6,16.44212]
[1741921064101,5.26876,1898.0,1897.6,11.17242]
[1741921065499,5.26859,1898.1,1897.7,5.26953]
[1741921065884,5.26873,1898.0,1897.7,5.26953]
[1741921066088,5.26873,1898.0,1897.6,11.17256]
[1741921066291,5.26873,1898.0,1897.6,12.816822]
[1741921067205,5.2692,1897.9,1897.6,5.9028]
[1741921067919,5.7919,1897.9,1897.5,5.27006]
[1741921068220,5.7919,1897.9,1897.5,10.38506]
[1741921068923,5.2692,1897.9,1897.5,10.38506]
[1741921069328,8.56251574,1898.0,1897.6,5.26979]
[1741921069529,5.26872,1898.0,1897.6,6.835275]
[1741921069691,5.26843,1898.1,1897.7,6.05733]
[1741921069891,5.26843,1898.1,1897.7,11.32671]
[1741921070437,5.26843,1898.1,1897.8,5.26925]
[1741921070590,0.5227,1898.3,1897.7,0.7878]
[1741921070796,5.26761,1898.4,1898.0,6.05646]
[1741921071192,5.26761,1898.4,1898.0,11.32497]
[1741921071391,5.26761,1898.4,1898.0,12.968967]
[1741921072093,5.26761,1898.4,1898.0,7.700307]
[1741921072294,5.26797,1898.3,1898.0,0.7878]
[1741921072495,8.56176574,1898.3,1898.0,0.7878]
[1741921072794,5.26817,1898.2,1897.9,5.115]
[1741921074530,5.26817,1898.2,1897.9,10.38396]
[1741921074707,5.26817,1898.2,1897.9,5.115]
[1741921075040,3.81649574,1898.3,1897.9,5.115]
[1741921075197,8.56226725,1898.0,1897.6,21.18716]
[1741921075394,5.26916,1897.9,1897.6,5.8774]
[1741921075599,5.26916,1897.9,1897.6,5.115]
[1741921076322,9.08478725,1898.0,1897.6,10.38479]
[1741921077301,8.56208725,1898.0,1897.7,0.7624]
[1741921077830,5.26875,1898.0,1897.7,0.7624]
[1741921079360,3.0,1898.1,1897.7,6.0318]
[1741921079527,3.0,1898.1,1897.8,5.26923]
[1741921080226,11.29732,1898.5,1897.9,5.26873]
[1741921080227,6.29333725,1898.4,1897.9,5.26873]
[1741921080452,5.26805,1898.3,1897.8,5.26918]
[1741921080762,5.26814,1898.2,1897.8,5.26918]
[1741921081127,5.26805,1898.3,1897.9,5.26893]
[1741921081442,11.56094725,1898.4,1898.0,6.0879]
[1741921081656,16.82875725,1898.4,1898.0,0.8192]
[1741921082269,5.26816,1898.2,1898.0,0.8192]
[1741921082647,5.26816,1898.2,1897.8,5.26924]
[1741921082648,8.56149725,1898.2,1897.8,6.03824]
[1741921082832,5.26854,1898.1,1897.8,0.769]
[1741921083029,13.5372,1898.1,1897.8,0.769]
[1741921083230,3.29333725,1898.0,1897.6,11.15356]
[1741921083425,3.29333725,1898.0,1897.7,5.26948]
[1741921083625,8.26853,1898.1,1897.7,5.26934]
[1741921083829,16.83050725,1898.1,1897.7,5.26934]
[1741921084029,16.83017407,1898.1,1897.7,5.26934]
[1741921084256,5.2687,1898.0,1897.7,5.26934]
[1741921084561,5.2687,1898.0,1897.6,11.15376]
[1741921084761,5.2687,1898.0,1897.6,12.796119]
[1741921085359,11.56153407,1898.1,1897.6,12.796119]
[1741921085360,16.83018407,1898.1,1897.7,5.26952]
[1741921086330,11.56153407,1898.1,1897.7,5.26952]
[1741921086536,11.56153407,1898.1,1897.7,10.53886]
[1741921086766,11.56153407,1898.1,1897.7,10.53877]
[1741921086971,11.56153407,1898.1,1897.7,5.26934]
[1741921087670,8.26853,1898.1,1897.7,7.0758899]
[1741921088671,5.26875,1898.0,1897.6,11.1538]
[1741921089067,5.26875,1898.0,1897.6,16.4236]
[1741921089442,11.56153407,1898.1,1897.7,5.26953]
[1741921089774,11.56153407,1898.1,1897.6,11.15374]
[1741921089941,5.2688,1898.0,1897.6,11.15374]
[1741921090145,5.2688,1898.0,1897.6,18.065721]
[1741921090342,5.2688,1898.0,1897.6,12.795981]
[1741921093242,5.2688,1898.0,1897.6,7.680981]
[1741921093537,5.2688,1898.0,1897.6,11.1536]
[1741921093774,5.2688,1898.0,1897.6,16.42321]
[1741921093984,5.2688,1898.0,1897.7,5.26952]
[1741921094289,8.26853,1898.1,1897.7,5.26952]
[1741921094459,13.53716,1898.1,1897.7,5.26952]
[1741921094659,8.26853,1898.1,1897.7,6.911832]
[1741921095389,13.53717,1898.1,1897.7,6.911832]
[1741921095584,3.0,1898.1,1897.8,5.2692]
[1741921095752,3.0,1898.1,1897.9,5.26895]
[1741921095953,3.0,1898.4,1898.0,5.26848]
[1741921096289,8.26792,1898.3,1897.9,6.06861]
[1741921096486,13.53602,1898.3,1897.9,6.06861]
[1741921096794,8.79062,1898.3,1897.9,6.06861]
[1741921096988,14.05863,1898.3,1897.9,6.06861]
[1741921097183,8.79062,1898.3,1897.9,6.06861]
[1741921097382,8.79062,1898.3,1898.0,0.5802458]
[1741921098272,3.0,1898.3,1898.0,0.5802458]
[1741921098471,3.0,1898.3,1898.0,5.8489158]
[1741921098977,0.5227,1898.5,1898.1,5.26817]
[1741921099290,8.56074407,1898.4,1898.0,5.6952458]
[1741921099487,5.26787,1898.3,1898.0,5.6952458]
[1741921100088,8.26774,1898.4,1898.0,5.6952458]
[1741921100482,8.26774,1898.4,1898.0,10.9639158]
[1741921101290,8.26774,1898.4,1898.0,5.6952458]
[1741921101517,11.0594,1898.2,1897.7,7.699022]
[1741921101822,5.26848,1898.1,1897.7,12.814022]
[1741921101986,3.29300407,1897.9,1897.7,5.115]
[1741921102191,8.56203407,1897.9,1897.6,0.7873]
[1741921103123,3.29300407,1897.9,1897.6,0.7873]
[1741921103283,8.56199407,1897.9,1897.5,10.38503]
[1741921104499,8.56199407,1897.9,1897.4,6.05561]
[1741921104500,5.26928,1897.8,1897.4,0.7855]
[1741921104695,5.26928,1897.8,1897.4,5.115]
[1741921104907,5.26966,1897.7,1897.3,5.27046]
[1741921105229,5.26966,1897.7,1897.3,7.411758]
[1741921105388,5.26992,1897.6,1897.2,0.8316]
[1741921105590,5.27038,1897.4,1897.0,6.10201]
[1741921105790,5.27038,1897.4,1897.1,5.115]
[1741921106196,5.27038,1897.4,1897.0,0.8308]
[1741921106418,10.541,1897.4,1897.0,0.8308]
[1741921106822,5.27036,1897.4,1897.0,0.8308]
[1741921106989,5.27036,1897.4,1897.0,6.10224]
[1741921107392,10.54087,1897.4,1897.0,6.10224]
[1741921107592,5.27036,1897.4,1897.0,6.10224]
[1741921108125,3.29300407,1897.5,1897.1,5.27118]
[1741921108624,3.0,1897.4,1897.1,5.27113]
[1741921109340,3.5227,1897.6,1897.2,5.2708]
[1741921109509,5.27016,1897.5,1897.1,5.27098]
[1741921110045,5.27016,1897.5,1897.1,10.54207]
[1741921110207,5.27016,1897.5,1897.1,5.27098]
[1741921110409,8.79259,1897.6,1897.1,10.54193]
[1741921110610,8.79259,1897.6,1897.2,5.27087]
[1741921110835,3.5227,1897.6,1897.4,5.27035]
[1741921111034,3.29300407,1897.7,1897.4,5.27035]
[1741921111035,3.29300407,1897.7,1897.4,5.27023]
[1741921111718,3.29300407,1897.7,1897.3,0.7844]
[1741921112039,8.26965,1897.7,1897.3,6.05488]
[1741921112235,13.53942,1897.7,1897.3,0.7844]
[1741921113035,8.26965,1897.7,1897.3,0.7844]
[1741921113209,0.5227,1897.5,1897.1,10.04]
[1741921113407,5.27086,1897.3,1897.1,10.04]
[1741921113613,8.56351407,1897.4,1896.9,6.10341]
[1741921114123,13.83412407,1897.4,1896.9,6.10341]
[1741921114323,5.27065,1897.3,1896.9,6.10341]
[1741921114524,10.54154,1897.3,1896.9,6.10341]
[1741921114710,5.271,1897.2,1896.9,0.8318]
[1741921118458,5.27136,1897.1,1896.9,0.8318]
[1741921118743,5.271,1897.2,1896.9,0.8318]
[1741921120731,8.27072,1897.3,1896.9,6.10343]
[1741921120915,5.27093,1897.2,1896.9,0.8318]
[1741921121346,8.27072,1897.3,1896.9,7.752544]
[1741921121716,8.27078,1897.3,1896.9,7.752544]
[1741921121916,8.27078,1897.3,1896.9,13.024084]
[1741921122258,8.27078,1897.3,1896.9,13.023984]
[1741921124152,3.0,1897.3,1897.0,5.27143]
[1741921124353,8.27067,1897.3,1897.0,5.27143]
[1741921124646,3.0,1897.3,1897.0,5.27143]
[1741921125852,3.0,1897.3,1897.0,6.5738334]
[1741921128255,8.27071,1897.3,1897.0,1.3024034]
[1741921128451,8.27071,1897.3,1896.9,7.752464]
[1741921129252,8.27071,1897.3,1897.0,5.27145]
[1741921129451,3.0,1897.3,1896.9,7.752594]
[1741921129645,3.0,1897.3,1897.0,5.27141]
[1741921131454,3.0,1897.3,1897.0,10.54275]
[1741921131658,3.0,1897.3,1897.0,11.8450204]
[1741921132160,3.0,1897.3,1897.0,6.5736804]
[1741921132329,3.0,1897.3,1897.0,6.5736304]
[1741921132524,3.0,1897.3,1897.1,5.27109]
[1741921132738,3.0,1897.3,1897.0,6.5736304]
[1741921132938,3.0,1897.3,1897.0,11.8449604]
[1741921133194,5.27048,1897.4,1897.1,1.18449604]
[1741921133390,3.5599125,1898.8,1897.2,29.50692407]
[1741921133680,5.26744,1898.5,1898.0,6.03697]
[1741921133834,5.26744,1898.5,1898.0,11.43650776]
[1741921134038,5.26714,1898.6,1897.8,0.7647]
[1741921134270,8.56114407,1898.2,1897.8,0.7647]
[1741921134435,5.26798,1898.3,1897.8,6.03395]
[1741921134639,5.26787,1898.3,1897.6,16.69965]
[1741921134864,11.56128407,1898.2,1897.7,5.26951]
[1741921135170,3.0,1898.2,1897.8,5.26923]
[1741921135369,8.56124407,1898.2,1897.9,0.526923]
[1741921135573,3.0,1898.1,1897.7,5.26932]
[1741921135774,3.0,1898.1,1897.7,10.53872]
[1741921136172,3.0,1898.1,1897.6,6.1604]
[1741921136173,3.0,1898.1,1897.8,1.05886145]
[1741921136344,5.26946,1897.8,1897.2,0.8104]
[1741921136543,5.26946,1897.8,1897.4,1.03222874]
[1741921137195,3.0,1897.8,1897.4,6.30258874]
[1741921137473,3.0,1897.8,1897.3,5.27042]
[1741921137678,8.26951,1897.8,1897.3,5.27042]
[1741921137979,8.26951,1897.8,1897.3,12.22502937]
[1741921138547,3.0,1897.9,1897.5,5.26983]
[1741921138744,5.36,1898.1,1897.6,5.2696]
[1741921139050,3.0,1898.0,1897.6,5.2696]
[1741921139389,3.0,1898.0,1897.6,10.53924]
[1741921139701,3.0,1898.0,1897.6,5.2696]
[1741921139909,3.0,1898.0,1897.7,5.2693]
[1741921140456,8.26888,1898.0,1897.5,6.08504]
[1741921140803,3.0,1898.0,1897.6,5.26962]
[1741921141011,3.0,1898.0,1897.7,5.26932]
[1741921141213,3.0,1898.0,1897.6,5.26958]
[1741921141492,3.0,1898.0,1897.6,10.53924]
[1741921141655,3.0,1898.0,1897.6,5.26958]
[1741921142555,3.29300407,1897.9,1897.5,0.8152]
[1741921142814,3.29300407,1897.7,1897.4,5.27018]
[1741921143025,3.29300407,1897.7,1897.3,6.679112]
[1741921143301,3.29300407,1897.7,1897.3,6.07103]
[1741921143468,5.26942,1897.8,1897.3,6.07103]
[1741921143674,8.56239407,1897.8,1897.3,6.07103]
[1741921144375,5.26939,1897.8,1897.3,6.07103]
[1741921144695,8.56238407,1897.8,1897.3,6.07103]
[1741921144893,13.83179407,1897.8,1897.3,6.07103]
[1741921145094,8.56238407,1897.8,1897.3,6.07103]
[1741921145278,5.27011,1897.5,1897.0,6.09864]
[1741921145484,3.29300407,1897.4,1897.0,6.09864]
[1741921146009,8.56337407,1897.4,1896.9,5.27174]
[1741921146179,3.29300407,1897.2,1896.9,5.27174]
[1741921146381,5.27065,1897.3,1896.9,5.27174]
[1741921146591,8.56337407,1897.4,1896.9,5.27174]
[1741921147073,3.29300407,1897.4,1897.0,5.27131]
[1741921147497,8.56340407,1897.4,1897.0,5.27131]
[1741921147711,8.06340407,1897.4,1897.0,5.27131]
[1741921147907,8.06340407,1897.4,1896.9,5.27172]
[1741921148103,5.2704,1897.4,1896.9,5.27172]
[1741921148410,8.56340407,1897.4,1896.9,5.27172]
[1741921148979,3.0,1897.3,1896.9,5.27172]
[1741921149277,3.0,1897.3,1896.9,10.54328]
[1741921149473,3.0,1897.3,1897.0,10.54271]
[1741921149675,3.0,1897.3,1897.0,5.27124]
[1741921149910,8.27079,1897.3,1896.9,5.27172]
[1741921150304,8.27079,1897.3,1896.9,10.54329]
[1741921150305,3.0,1897.3,1896.9,10.54329]
[1741921150710,3.0,1897.3,1897.0,5.27143]
[1741921150894,3.0,1897.3,1897.0,5.27125]
[1741921151790,3.0,1897.3,1896.9,5.2717]
[1741921152100,3.0,1897.3,1897.0,5.27148]
[1741921154110,8.27083,1897.3,1896.9,5.27156]
[1741921154277,9.42718741,1897.3,1896.9,5.27156]
[1741921154784,3.29300407,1897.2,1896.8,4.51772]
[1741921155118,3.29300407,1897.2,1896.7,3.6906]
[1741921155119,3.29300407,1897.0,1896.6,3.69081]
[1741921157097,3.29300407,1897.0,1896.6,7.38145]
[1741921157296,3.69001,1897.1,1896.6,7.38145]
[1741921157297,3.69001,1897.1,1896.6,4.428785]
[1741921157486,3.0,1897.1,1896.8,3.6903]
[1741921158820,3.68764,1898.3,1897.9,3.68824]
[1741921159035,3.68778,1898.2,1897.7,3.68859]
[1741921159321,7.34976207,1898.1,1897.6,3.68874]
[1741921159509,6.98042407,1898.4,1897.8,3.68842]
[1741921159695,3.6876,1898.3,1897.9,0.8331]
[1741921160100,6.98070407,1898.2,1897.7,4.45335]
[1741921160323,3.0,1898.1,1897.7,4.45335]
[1741921160490,6.98070407,1898.2,1897.7,4.45335]
[1741921160692,3.0,1898.1,1897.7,5.267557]
[1741921160894,3.0,1898.1,1897.8,3.68839]
[1741921161822,6.68799,1898.1,1897.7,5.267417]
[1741921162026,3.29300407,1898.0,1897.6,3.68869]
[1741921162227,3.29300407,1898.0,1897.7,0.368869]
[1741921162404,3.0,1897.8,1897.4,4.44148]
[1741921162928,3.0,1897.8,1897.4,8.13062]
[1741921163221,3.0,1897.8,1897.4,4.44148]
[1741921163726,3.0,1897.8,1897.4,8.13064]
[1741921163931,3.0,1897.8,1897.5,3.68904]
[1741921164299,3.0,1897.8,1897.6,3.68884]
[1741921164523,3.0,1897.8,1897.5,3.68904]
[1741921165509,3.0,1897.8,1897.5,7.37795]
[1741921165711,3.0,1897.8,1897.4,0.80509721]
[1741921165712,3.0,1897.8,1897.4,4.49426721]
[1741921165906,3.0,1897.8,1897.4,5.25992372]
[1741921166399,3.29300407,1898.1,1897.7,3.68867]
[1741921166703,3.0,1898.0,1897.7,3.68859]
[1741921167025,3.0,1898.1,1897.8,0.8198]
[1741921167225,6.98120407,1898.0,1897.6,0.8198]
[1741921167429,6.98120407,1898.0,1897.5,3.68892]
[1741921167430,4.38652041,1897.9,1897.5,3.68892]
[1741921168201,3.68848,1897.8,1897.4,4.50902]
[1741921168400,3.29300407,1897.6,1897.2,0.8273]
[1741921168637,3.68907,1897.5,1897.1,7.37942]
[1741921168796,3.68907,1897.5,1897.0,0.8273]
[1741921168797,3.68907,1897.5,1897.0,4.5173]
[1741921169000,3.29300407,1897.4,1897.0,4.5173]
[1741921169201,6.98235407,1897.4,1896.9,3.69007]
[1741921169400,6.98235407,1897.4,1896.9,7.38017]
[1741921169628,6.98235407,1897.4,1896.9,8.200917]
[1741921170234,3.0,1897.4,1897.0,3.69002]
[1741921170803,3.0,1897.4,1897.0,3.68994]
[1741921171032,3.0,1897.4,1897.0,7.37988]
[1741921171229,3.0,1897.4,1897.0,3.68994]
[1741921171434,3.0,1897.4,1897.0,7.37986]
[1741921171734,3.0,1897.4,1897.0,3.68992]
[1741921172329,6.68929,1897.4,1897.0,3.68992]
[1741921173020,3.0,1897.4,1897.1,3.68979]
[1741921173332,3.0,1897.4,1897.2,3.68961]
[1741921173828,3.0,1897.4,1897.1,3.68979]
[1741921176025,6.6891,1897.5,1897.1,3.68975]
[1741921176944,3.0,1897.5,1897.1,3.68975]
[1741921177736,7.68737941,1897.5,1897.0,7.37991]
[1741921178653,3.68975,1897.2,1896.7,3.69052]
[1741921178939,3.68975,1897.2,1896.7,7.38106]
[1741921179140,7.37957,1897.2,1896.7,3.74323743]
[1741921179308,10.67250407,1897.2,1896.7,7.38105]